[Event "Chile-ch Women 2019"]
[Site "Santiago Las Condes"]
[Date "2019.02.12"]
[Round "1.1"]
[White "Abarca Gonzalez, Damaris"]
[Black "Aguilera Merlet, Melisa Paz"]
[Result "1-0"]
[ECO "B84"]
[WhiteElo "2039"]
[BlackElo "1653"]
[Annotator "NA"]
[PlyCount "53"]
[EventDate "2019.02.12"]
[EventType "swiss"]
[EventCountry "CHI"]
[SourceTitle "playchess.com"]
[Source "ChessBase"]
[SourceQuality "1"]
[TimeControl "5400+30"]

1. e4 {[%emt 0:00:00]} c5 {[%emt 0:00:00]} 2. Nf3 {[%emt 0:00:00]} d6 {[%emt 0:00:00]} 3. d4 {[%emt 0:00:00]} cxd4 {[%emt 0:00:01]} 4. Nxd4 {[%emt 0:00:00]} Nf6 {[%emt 0:00:08]} 5. Nc3 {[%emt 0:00:02]} a6 {[%emt 0:00:21]} 6. Be2 {[%emt 0:00:56]} e6 {[%emt 0:00:31]} 7. O-O {[%emt 0:00:34]} Be7 {[%emt 0:00:57]} 8. a4 {[%emt 0:01:51]} O-O {[%emt 0:03:32]} 9. a5 {[%emt 0:00:47]} Qc7 {[%emt 0:01:19]} 10. Be3 {[%emt 0:01:12]} Nbd7 {[%emt 0:02:42]} 11. f4 {[%emt 0:03:21]} Nc5 {[%emt 0:29:32]} 12. Bf3 {[%emt 0:00:35]} Re8 {[%emt 0:01:09]} 13. g4 {[%emt 0:03:17]} Bf8 {[%emt 0:15:28]} 14. g5 {[%emt 0:00:25]} Nfd7 {[%emt 0:00:26]} 15. Nde2 {[%emt 0:02:06]} Nb8 {[%emt 0:01:04]} 16. b4 {[%emt 0:04:35]} Ncd7 {[%emt 0:01:21]} 17. Na4 {[%emt 0:04:24]} Nc6 {[%emt 0:08:21]} 18. c3 {[%emt 0:00:21]} Ne7 {[%emt 0:02:56]} 19. Bg2 {[%emt 0:08:23]} g6 {[%emt 0:20:41]} 20. Qd2 {[%emt 0:05:45]} Bg7 {[%emt 0:02:41]} 21. Rfd1 {[%emt 0:00:40]} Qc4 {[%emt 0:05:49]} 22. Nb2 {[%emt 0:00:59]} Qc7 {[%emt 0:01:03]} 23. Qxd6 {[%emt 0:01:18]} Qxd6 {[%emt 0:00:28]} 24. Rxd6 {[%emt 0:00:02]} Bf8 {[%emt 0:00:54]} 25. Rd2 {[%emt 0:00:20]} Bg7 {[%emt 0:00:21]} 26. Rad1 {[%emt 0:00:26]} Rd8 {[%emt 0:00:39]} 27. Nc4 {[%emt 0:00:55]} 1-0

[Event "Chile-ch Women 2019"]
[Site "Santiago Las Condes"]
[Date "2019.02.12"]
[Round "1.1"]
[White "Abarca Gonzalez, Damaris"]
[Black "Cruz Leiva, Kamila Ignacia"]
[Result "1-0"]
[ECO "A36"]
[WhiteElo "2039"]
[BlackElo "1251"]
[Annotator "NA"]
[PlyCount "25"]
[EventDate "2019.02.12"]
[EventType "swiss"]
[EventCountry "CHI"]
[SourceTitle "playchess.com"]
[Source "ChessBase"]
[SourceQuality "1"]
[TimeControl "5400+30"]

1. c4 {[%emt 0:00:00]} Nf6 {[%emt 0:00:00]} 2. g3 {[%emt 0:00:00]} c5 {[%emt 0:00:17]} 3. Bg2 {[%emt 0:00:00]} e6 {[%emt 0:00:06]} 4. Nc3 {[%emt 0:00:00]} Be7 {[%emt 0:00:04]} 5. e3 {[%emt 0:00:09]} Nc6 {[%emt 0:03:37]} 6. Nge2 {[%emt 0:00:08]} O-O {[%emt 0:00:35]} 7. O-O {[%emt 0:00:10]} Rb8 {[%emt 0:00:31]} 8. d4 {[%emt 0:00:19]} cxd4 {[%emt 0:00:10]} 9. exd4 {[%emt 0:00:16]} a6 {[%emt 0:01:05]} 10. d5 {[%emt 0:00:16]} Na5 {[%emt 0:14:54]} 11. d6 {[%emt 0:01:08]} Bxd6 {[%emt 0:00:08]} 12. Qxd6 {[%emt 0:00:02]} Nxc4 {[%emt 0:00:11]} 13. Qxb8 {[%emt 0:00:03]} 1-0

[Event "Chile-ch Women 2019"]
[Site "Santiago Las Condes"]
[Date "2019.02.12"]
[Round "1.2"]
[White "Hormazabal Figueroa, Constanza Va"]
[Black "Sanchez Soto, Ana Isabel"]
[Result "0-1"]
[ECO "C54"]
[WhiteElo "1624"]
[BlackElo "1993"]
[Annotator "NA"]
[PlyCount "58"]
[EventDate "2019.02.12"]
[EventType "swiss"]
[EventCountry "CHI"]
[SourceTitle "playchess.com"]
[Source "ChessBase"]
[SourceQuality "1"]
[TimeControl "5400+30"]

1. e4 {[%emt 0:00:00]} e5 {[%emt 0:00:00]} 2. Nf3 {[%emt 0:00:00]} Nc6 {[%emt 0:00:00]} 3. Bc4 {[%emt 0:00:00]} Bc5 {[%emt 0:01:13]} 4. d3 {[%emt 0:00:20]} Nf6 {[%emt 0:00:16]} 5. c3 {[%emt 0:00:12]} O-O {[%emt 0:01:07]} 6. b4 {[%emt 0:00:42]} Bb6 {[%emt 0:01:36]} 7. b5 {[%emt 0:03:23]} Na5 {[%emt 0:00:14]} 8. Nxe5 {[%emt 0:01:03]} d6 {[%emt 0:00:10]} 9. Nxf7 {[%emt 0:18:38]} Rxf7 {[%emt 0:00:18]} 10. Bxf7+ {[%emt 0:00:09]} Kxf7 {[%emt 0:00:15]} 11. Nd2 {[%emt 0:00:37]} Qe8 {[%emt 0:01:12]} 12. a4 {[%emt 0:06:41]} a6 {[%emt 0:01:29]} 13. bxa6 {[%emt 0:00:30]} Rxa6 {[%emt 0:00:50]} 14. O-O {[%emt 0:00:16]} Kg8 {[%emt 0:00:38]} 15. h3 {[%emt 0:01:12]} Bd7 {[%emt 0:00:49]} 16. Kh1 {[%emt 0:15:24]} Nh5 {[%emt 0:03:59]} 17. Qf3 {[%emt 0:09:35]} Ra8 {[%emt 0:02:12]} 18. d4 {[%emt 0:00:56]} Qg6 {[%emt 0:00:43]} 19. Re1 {[%emt 0:10:44]} Rf8 {[%emt 0:00:17]} 20. Qe2 {[%emt 0:01:01]} Nf4 {[%emt 0:05:15]} 21. Qf1 {[%emt 0:00:24]} Qh5 {[%emt 0:01:45]} 22. Nc4 {[%emt 0:04:15]} Nxh3 {[%emt 0:01:52]} 23. gxh3 {[%emt 0:07:04]} Bxh3 {[%emt 0:00:15]} 24. Qg1 {[%emt 0:02:39]} Nxc4 {[%emt 0:02:08]} 25. Ra2 {[%emt 0:06:14]} Bg4+ {[%emt 0:04:54]} 26. Qh2 {[%emt 0:00:55]} Qg6 {[%emt 0:01:23]} 27. Kg1 {[%emt 0:03:15]} Rf3 {[%emt 0:02:05]} 28. Qg2 {[%emt 0:01:46]} Qh5 {[%emt 0:01:35]} 29. Rc2 {[%emt 0:03:12]} Rh3 {[%emt 0:00:53]} 0-1

[Event "Chile-ch Women 2019"]
[Site "Santiago Las Condes"]
[Date "2019.02.12"]
[Round "1.2"]
[White "Rozas Lazcano, Valeska"]
[Black "Jorquera Cabello, Valentina Paz"]
[Result "0-1"]
[ECO "B20"]
[WhiteElo "1219"]
[BlackElo "2016"]
[Annotator "NA"]
[PlyCount "82"]
[EventDate "2019.02.12"]
[EventType "swiss"]
[EventCountry "CHI"]
[SourceTitle "playchess.com"]
[Source "ChessBase"]
[SourceQuality "1"]
[TimeControl "5400+30"]

1. e4 {[%emt 0:00:00]} c5 {[%emt 0:00:00]} 2. b4 {[%emt 0:00:00]} d6 {[%emt 0:02:23]} 3. bxc5 {[%emt 0:00:53]} dxc5 {[%emt 0:00:05]} 4. Nf3 {[%emt 0:00:53]} Nc6 {[%emt 0:02:40]} 5. Bb5 {[%emt 0:03:24]} Bd7 {[%emt 0:00:37]} 6. O-O {[%emt 0:04:02] B20: Sicilian: Unusual White 2nd moves} e6 {[%emt 0:00:41]} 7. c3 {[%emt 0:04:51]} Nf6 {[%emt 0:01:10]} 8. Re1 {[%emt 0:00:29]} a6 {[%emt 0:05:53]} (8... Rc8 9. d4 cxd4 10. cxd4 Bb4 11. Bd2 Bxd2 12. Qxd2 {1-0 (44) Christiansen,J (2495)-Kuzubov,Y (2699) Riadh 2017}) 9. Ba4 $146 {[%emt 0:00:50]} ({Predecessor:} 9. Bf1 e5 10. a4 Be7 11. Na3 {½-½ (44) Akshayraj,K (2394)-Roy Chowdhury,S (2427) Mumbai 2009}) 9... c4 {[%emt 0:11:46]} 10. Bc2 {[%emt 0:21:13]} e5 {[%emt 0:00:54]} 11. d4 {[%emt 0:02:11]} cxd3 {[%emt 0:00:09]} 12. Qxd3 {[%emt 0:00:41]} h6 {[%emt 0:07:22]} 13. Nbd2 {[%emt 0:02:14]} Bc5 {[%emt 0:15:09]} 14. h3 {[%emt 0:00:51]} O-O {[%emt 0:20:37]} 15. Nf1 {[%emt 0:00:52]} Qc7 {[%emt 0:03:40]} 16. Ne3 {[%emt 0:02:37]} Bxe3 {[%emt 0:01:46]} 17. Qxe3 {[%emt 0:04:55]} Rac8 {[%emt 0:03:41]} 18. Bb3 {[%emt 0:02:55]} Na5 {[%emt 0:02:30]} 19. Ba3 {[%emt 0:03:57]} Rfe8 $1 {[%emt 0:00:52]} 20. Rac1 {[%emt 0:02:34]} Be6 {[%emt 0:01:28]} 21. Nd2 {[%emt 0:04:01]} Nc4 {[%emt 0:07:09]} 22. Nxc4 {[%emt 0:03:42]} Bxc4 {[%emt 0:00:03]} 23. Bb2 {[%emt 0:06:56]} Red8 {[%emt 0:01:59]} 24. Red1 {[%emt 0:00:56]} b5 {[%emt 0:00:24]} 25. Qf3 {[%emt 0:10:19]} Qc6 {[%emt 0:00:50]} 26. Re1 {[%emt 0:05:22]} Rd2 {[%emt 0:01:16]} 27. Ba1 {[%emt 0:02:08]} (27. Ba3 $17) 27... Rcd8 {[%emt 0:00:44]} 28. g4 {[%emt 0:05:38]} (28. Qf5 {might work better.}) 28... R8d3 {[%emt 0:03:08]} 29. Qf5 $19 {[%emt 0:03:04]} Rxh3 {[%emt 0:01:17]} 30. g5 {[%emt 0:00:38]} Rh5 {[%emt 0:00:32]} 31. Qf3 {[%emt 0:01:41]} Rxg5+ {[%emt 0:00:10]} 32. Kh1 {[%emt 0:00:10]} Ng4 {[%emt 0:01:01]} 33. Rc2 {[%emt 0:00:54]} Nxf2+ {[%emt 0:02:11]} 34. Kh2 {[%emt 0:00:17]} Ng4+ {[%emt 0:01:07]} 35. Kh1 {[%emt 0:00:11]} Rd3 {[%emt 0:00:11]} 36. Qg2 {[%emt 0:00:55]} Qg6 {[%emt 0:01:17]} 37. Rg1 {[%emt 0:00:41]} Qh5+ {[%emt 0:00:27]} 38. Qh2 {[%emt 0:00:08]} Nxh2 {[%emt 0:00:16]} 39. Rxh2 {[%emt 0:00:10]} Qf3+ {[%emt 0:00:20]} 40. Rgg2 {[%emt 0:00:17]} Qf1+ {[%emt 0:00:11]} 41. Rg1 {[%emt 0:00:08]} Rxg1# {[%emt 0:00:09]} 0-1

[Event "Chile-ch Women 2019"]
[Site "Santiago Las Condes"]
[Date "2019.02.12"]
[Round "1.3"]
[White "Jorquera Cabello, Valentina"]
[Black "Santoya Gonzalez, Clara Maria"]
[Result "1-0"]
[ECO "B52"]
[WhiteElo "2016"]
[BlackElo "2128"]
[Annotator "NA RC"]
[PlyCount "61"]
[EventDate "2019.02.12"]
[EventType "swiss"]
[EventCountry "CHI"]
[SourceTitle "playchess.com"]
[Source "ChessBase"]
[SourceQuality "1"]
[TimeControl "5400+30"]

1. e4 {[%emt 0:00:00]} c5 {[%emt 0:00:00]} 2. Nf3 {[%emt 0:00:00]} d6 {[%emt 0:00:50]} 3. Bb5+ {[%emt 0:01:50]} Bd7 {[%emt 0:01:21]} 4. Bxd7+ {[%emt 0:00:35]} Nxd7 {[%emt 0:01:35]} 5. O-O {[%emt 0:00:52]} g6 {[%emt 0:02:21]} 6. c3 {[%emt 0:01:58]} Bg7 {[%emt 0:02:47]} 7. d4 {[%emt 0:00:06]} cxd4 {[%emt 0:01:57]} 8. cxd4 {[%emt 0:00:05]} Qc7 {[%emt 0:13:02]} 9. Nc3 {[%emt 0:00:44]} e6 {[%emt 0:06:43]} 10. Bf4 {[%emt 0:00:37]} a6 {[%emt 0:02:24]} 11. Rc1 {[%emt 0:07:13]} Qb8 {[%emt 0:08:28]} 12. Qd2 {[%emt 0:05:20]} Ne7 {[%emt 0:08:16]} 13. Ne2 {[%emt 0:05:25]} O-O {[%emt 0:07:16]} 14. Qb4 {[%emt 0:01:15]} Nc6 {[%emt 0:09:59]} 15. Qxd6 {[%emt 0:00:13]} Qxd6 {[%emt 0:00:12]} 16. Bxd6 {[%emt 0:00:06]} Rfd8 {[%emt 0:00:57]} 17. e5 {[%emt 0:09:05]} Nb6 {[%emt 0:02:05]} 18. Bc7 {[%emt 0:00:17]} Rd5 {[%emt 0:11:19]} 19. Bxb6 {[%emt 0:00:16]} Rb5 {[%emt 0:00:24]} 20. Bc7 {[%emt 0:00:36]} Rxb2 {[%emt 0:00:14]} 21. Nc3 {[%emt 0:00:10]} Rc8 {[%emt 0:01:13]} 22. Bd6 {[%emt 0:03:54]} Bh6 {[%emt 0:00:52]} 23. Rb1 {[%emt 0:02:38]} Rc2 {[%emt 0:01:11]} 24. Ne4 {[%emt 0:00:33]} Rxa2 {[%emt 0:05:04]} 25. Nf6+ {[%emt 0:01:24]} Kg7 {[%emt 0:00:37]} 26. Rxb7 {[%emt 0:00:14]} Ra5 {[%emt 0:08:46]} 27. g3 {[%emt 0:02:44]} Rb5 {[%emt 0:02:28]} 28. Rd7 {[%emt 0:00:17]} a5 {[%emt 0:01:04]} 29. Ng4 {[%emt 0:01:21]} a4 {[%emt 0:00:32]} 30. Nxh6 {[%emt 0:00:10]} Kxh6 {[%emt 0:00:28]} 31. Rxf7 {[%emt 0:00:04]} 1-0

[Event "Chile-ch Women 2019"]
[Site "Santiago Las Condes"]
[Date "2019.02.12"]
[Round "1.4"]
[White "Pilnik Aranda, Karla Constanza"]
[Black "Arbunic Castro, Giovanna"]
[Result "0-1"]
[ECO "B27"]
[WhiteElo "1373"]
[BlackElo "1995"]
[Annotator "NA"]
[PlyCount "62"]
[EventDate "2019.02.12"]
[EventType "swiss"]
[EventCountry "CHI"]
[SourceTitle "playchess.com"]
[Source "ChessBase"]
[SourceQuality "1"]
[TimeControl "5400+30"]

1. e4 {[%emt 0:00:00]} g6 {[%emt 0:00:21]} 2. d4 {[%emt 0:00:35]} Bg7 {[%emt 0:00:06]} 3. Nf3 {[%emt 0:00:21]} c5 {[%emt 0:00:17]} 4. Be3 {[%emt 0:01:30]} Nf6 {[%emt 0:01:46]} 5. Nc3 {[%emt 0:05:09]} Qa5 {[%emt 0:00:47]} 6. Nd2 {[%emt 0:05:09]} Qb4 {[%emt 0:11:57]} 7. Nb5 {[%emt 0:10:09]} Na6 {[%emt 0:06:08]} 8. Rb1 {[%emt 0:06:31]} O-O {[%emt 0:05:12]} 9. c3 {[%emt 0:01:03]} Qa5 {[%emt 0:00:31]} 10. dxc5 {[%emt 0:08:10]} d6 {[%emt 0:01:07]} 11. cxd6 {[%emt 0:01:41]} exd6 {[%emt 0:01:42]} 12. Be2 {[%emt 0:06:12]} d5 {[%emt 0:07:03]} 13. Qc2 {[%emt 0:08:54]} dxe4 {[%emt 0:06:31]} 14. Nd6 {[%emt 0:04:06]} Bf5 {[%emt 0:27:31]} 15. N2xe4 {[%emt 0:09:35]} Nxe4 {[%emt 0:04:24]} 16. Nxe4 {[%emt 0:00:42]} Rfe8 {[%emt 0:01:18]} 17. Bd3 {[%emt 0:01:12]} Rad8 {[%emt 0:02:54]} 18. f3 {[%emt 0:05:27]} Bxe4 {[%emt 0:03:42]} 19. fxe4 {[%emt 0:03:44]} f5 {[%emt 0:00:42]} 20. O-O {[%emt 0:02:58]} fxe4 {[%emt 0:00:21]} 21. Qb3+ {[%emt 0:01:39]} Kh8 {[%emt 0:00:13]} 22. Bc4 {[%emt 0:01:37]} Rc8 {[%emt 0:03:46]} 23. Be2 {[%emt 0:01:55]} Nc5 {[%emt 0:00:19]} 24. Qc2 {[%emt 0:02:28]} Nd3 {[%emt 0:01:57]} 25. Qb3 {[%emt 0:03:22]} Rc7 {[%emt 0:01:22]} 26. Rf7 {[%emt 0:01:56]} Rxf7 {[%emt 0:01:06]} 27. Qxf7 {[%emt 0:00:11]} Rf8 {[%emt 0:00:20]} 28. Qxb7 {[%emt 0:01:22]} Qxa2 {[%emt 0:00:12]} 29. Rd1 {[%emt 0:01:35]} Qxb2 {[%emt 0:00:29]} 30. Qxe4 {[%emt 0:02:33]} Qxe2 {[%emt 0:01:00]} 31. Qxd3 {[%emt 0:00:16]} Rf1+ {[%emt 0:00:06]} 0-1

[Event "Chile-ch Women 2019"]
[Site "Santiago Las Condes"]
[Date "2019.02.12"]
[Round "1.4"]
[White "Sangar Sangar, Saisha"]
[Black "Gomez Barrera, Javiera Belen"]
[Result "0-1"]
[ECO "C54"]
[WhiteElo "1166"]
[BlackElo "1990"]
[Annotator "NA"]
[PlyCount "48"]
[EventDate "2019.02.12"]
[EventType "swiss"]
[EventCountry "CHI"]
[SourceTitle "playchess.com"]
[Source "ChessBase"]
[SourceQuality "1"]
[TimeControl "5400+30"]

1. e4 {[%emt 0:00:00]} e5 {[%emt 0:00:00]} 2. Nf3 {[%emt 0:00:00]} Nc6 {[%emt 0:00:00]} 3. Bc4 {[%emt 0:00:00]} Bc5 {[%emt 0:00:00]} 4. c3 {[%emt 0:00:02]} Nf6 {[%emt 0:00:01]} 5. d3 {[%emt 0:00:23]} d6 {[%emt 0:01:52]} 6. h3 {[%emt 0:00:16]} a6 {[%emt 0:00:34]} 7. a4 {[%emt 0:00:30]} Ba7 {[%emt 0:00:52]} 8. O-O {[%emt 0:00:57]} h6 {[%emt 0:00:46]} 9. Bd2 {[%emt 0:02:52]} g5 {[%emt 0:14:46]} 10. Nh2 {[%emt 0:02:39]} Rg8 {[%emt 0:01:42]} 11. Qb3 {[%emt 0:02:14]} Qe7 {[%emt 0:02:34]} 12. Be3 {[%emt 0:07:02]} Na5 {[%emt 0:02:30]} 13. Qa2 {[%emt 0:02:20]} Nxc4 {[%emt 0:01:26]} 14. Qxc4 {[%emt 0:02:25]} g4 {[%emt 0:04:08]} 15. hxg4 {[%emt 0:01:07]} Nxg4 {[%emt 0:10:50]} 16. Nxg4 {[%emt 0:00:58]} Bxg4 {[%emt 0:00:44]} 17. g3 {[%emt 0:04:28]} Be6 {[%emt 0:12:29]} 18. Qb4 {[%emt 0:02:41]} Bxe3 {[%emt 0:03:20]} 19. fxe3 {[%emt 0:00:38]} Qh4 {[%emt 0:03:03]} 20. Kf2 {[%emt 0:03:35]} Qxg3+ {[%emt 0:00:24]} 21. Ke2 {[%emt 0:00:43]} Bg4+ {[%emt 0:00:02]} 22. Kd2 {[%emt 0:01:06]} Qg2+ {[%emt 0:00:01]} 23. Kc1 {[%emt 0:01:29]} Qxf1+ {[%emt 0:00:02]} 24. Kc2 {[%emt 0:01:04]} Qd1# {[%emt 0:00:06]} 0-1

[Event "Chile-ch Women 2019"]
[Site "Santiago Las Condes"]
[Date "2019.02.12"]
[Round "1.5"]
[White "Reyes Jara, Paula"]
[Black "Vargas Moraleda, Tabatha Victori"]
[Result "1-0"]
[ECO "B72"]
[WhiteElo "1955"]
[BlackElo "1395"]
[Annotator "NA"]
[PlyCount "77"]
[EventDate "2019.02.12"]
[EventType "swiss"]
[EventCountry "CHI"]
[SourceTitle "playchess.com"]
[Source "ChessBase"]
[SourceQuality "1"]
[TimeControl "5400+30"]

1. e4 {[%emt 0:00:00]} c5 {[%emt 0:00:00]} 2. Nf3 {[%emt 0:00:00]} d6 {[%emt 0:00:00]} 3. d4 {[%emt 0:00:06]} cxd4 {[%emt 0:00:00]} 4. Nxd4 {[%emt 0:00:06]} Nf6 {[%emt 0:00:00]} 5. Nc3 {[%emt 0:00:55]} g6 {[%emt 0:00:22]} 6. Be2 {[%emt 0:12:37]} Bg7 {[%emt 0:02:43]} 7. Be3 {[%emt 0:00:27]} O-O {[%emt 0:01:00]} 8. Qd2 {[%emt 0:02:46]} Re8 {[%emt 0:09:48]} 9. h4 {[%emt 0:03:20]} h5 {[%emt 0:02:00]} 10. O-O-O {[%emt 0:01:37]} Nc6 {[%emt 0:03:28]} 11. f3 {[%emt 0:06:45]} Bd7 {[%emt 0:17:22]} 12. Rhg1 {[%emt 0:05:52]} Ne5 {[%emt 0:08:25]} 13. Bh6 {[%emt 0:03:32]} Bh8 {[%emt 0:02:40]} 14. Bg5 {[%emt 0:02:32]} Rc8 {[%emt 0:06:54]} 15. f4 {[%emt 0:09:51]} Neg4 {[%emt 0:12:37]} 16. Bf3 {[%emt 0:03:52]} Qb6 {[%emt 0:13:58]} 17. f5 {[%emt 0:07:36]} Rc7 {[%emt 0:03:51]} 18. Bxg4 {[%emt 0:03:28]} Rxc3 {[%emt 0:04:08]} 19. Qxc3 {[%emt 0:02:55]} Nxg4 {[%emt 0:00:22]} 20. fxg6 {[%emt 0:01:07]} fxg6 {[%emt 0:00:50]} 21. Qc4+ {[%emt 0:01:56]} e6 {[%emt 0:02:06]} 22. Nb3 {[%emt 0:03:03]} Ne5 {[%emt 0:01:49]} 23. Qe2 {[%emt 0:00:41]} d5 {[%emt 0:02:47]} 24. Be3 {[%emt 0:02:39]} Qc7 {[%emt 0:00:59]} 25. Bf4 {[%emt 0:00:38]} Qc8 {[%emt 0:00:51]} 26. exd5 {[%emt 0:01:43]} exd5 {[%emt 0:00:54]} 27. Rxd5 {[%emt 0:01:20]} Nc4 {[%emt 0:01:03]} 28. Qd3 {[%emt 0:01:48]} Bf5 {[%emt 0:01:25]} 29. Rxf5 {[%emt 0:00:47]} gxf5 {[%emt 0:01:06]} 30. c3 {[%emt 0:00:32]} Qe6 {[%emt 0:00:41]} 31. Nd4 {[%emt 0:02:05]} Qc8 {[%emt 0:00:44]} 32. Nxf5 {[%emt 0:00:24]} Nb6 {[%emt 0:00:31]} 33. Nd6 {[%emt 0:01:49]} Qc5 {[%emt 0:00:25]} 34. Qg6+ {[%emt 0:00:18]} Bg7 {[%emt 0:00:26]} 35. Qxe8+ {[%emt 0:00:25]} Kh7 {[%emt 0:00:07]} 36. Qe4+ {[%emt 0:00:30]} Kg8 {[%emt 0:00:17]} 37. Qe6+ {[%emt 0:01:14]} Kh7 {[%emt 0:00:15]} 38. Qf5+ {[%emt 0:00:08]} Kg8 {[%emt 0:00:12]} 39. Qxc5 {[%emt 0:00:08]} 1-0

[Event "Chile-ch Women 2019"]
[Site "Santiago Las Condes"]
[Date "2019.02.12"]
[Round "1.5"]
[White "Reyes Jara, Paula"]
[Black "Astudillo Hernandez, Marta"]
[Result "1-0"]
[ECO "C54"]
[WhiteElo "1955"]
[BlackElo "1097"]
[Annotator "NA"]
[PlyCount "23"]
[EventDate "2019.02.12"]
[EventType "swiss"]
[EventCountry "CHI"]
[SourceTitle "playchess.com"]
[Source "ChessBase"]
[SourceQuality "1"]
[TimeControl "5400+30"]

1. e4 {[%emt 0:00:00]} e5 {[%emt 0:00:00]} 2. Nf3 {[%emt 0:00:00]} Nc6 {[%emt 0:00:00]} 3. Bc4 {[%emt 0:00:00]} Bc5 {[%emt 0:00:54]} 4. c3 {[%emt 0:00:02]} Nf6 {[%emt 0:03:01]} 5. d3 {[%emt 0:02:06]} d6 {[%emt 0:01:17]} 6. O-O {[%emt 0:00:08]} O-O {[%emt 0:00:11]} 7. Bg5 {[%emt 0:02:37]} h6 {[%emt 0:02:20]} 8. Bh4 {[%emt 0:00:07]} a6 {[%emt 0:10:28]} 9. d4 {[%emt 0:01:11]} exd4 {[%emt 0:00:35]} 10. cxd4 {[%emt 0:00:07]} Bb4 {[%emt 0:02:17]} 11. a3 {[%emt 0:00:20]} b5 {[%emt 0:01:02]} 12. Bd5 {[%emt 0:00:23]} 1-0

[Event "Chile-ch Women 2019"]
[Site "Santiago Las Condes"]
[Date "2019.02.12"]
[Round "1.6"]
[White "Hidalgo Martinez, Camila"]
[Black "Ruiz Olate, Emily Andrea"]
[Result "0-1"]
[ECO "B24"]
[WhiteElo "1069"]
[BlackElo "1892"]
[Annotator "NA"]
[PlyCount "70"]
[EventDate "2019.02.12"]
[EventType "swiss"]
[EventCountry "CHI"]
[SourceTitle "playchess.com"]
[Source "ChessBase"]
[SourceQuality "1"]
[TimeControl "5400+30"]

1. e4 {[%emt 0:00:00]} c5 {[%emt 0:00:00]} 2. Nc3 {[%emt 0:00:00]} Nc6 {[%emt 0:00:15]} 3. g3 {[%emt 0:00:00]} g6 {[%emt 0:03:21]} 4. Bg2 {[%emt 0:00:00]} Bg7 {[%emt 0:00:09]} 5. d3 {[%emt 0:00:38]} Nf6 {[%emt 0:00:31]} 6. h3 {[%emt 0:00:16]} d6 {[%emt 0:00:54]} 7. a3 {[%emt 0:00:52]} Bd7 {[%emt 0:05:42]} 8. Bd2 {[%emt 0:01:25]} O-O {[%emt 0:01:25]} 9. f4 {[%emt 0:00:04]} Rb8 {[%emt 0:18:18]} 10. Nf3 {[%emt 0:00:35]} b5 {[%emt 0:01:08]} 11. O-O {[%emt 0:00:46]} b4 {[%emt 0:00:54]} 12. Ne2 {[%emt 0:00:07]} bxa3 {[%emt 0:02:20]} 13. bxa3 {[%emt 0:01:30]} c4 {[%emt 0:00:30]} 14. Qe1 {[%emt 0:00:24]} cxd3 {[%emt 0:00:52]} 15. cxd3 {[%emt 0:00:11]} Qb6+ {[%emt 0:02:00]} 16. Kh1 {[%emt 0:00:45]} Qb3 {[%emt 0:00:45]} 17. Nc1 {[%emt 0:05:16]} Qc2 {[%emt 0:01:53]} 18. g4 {[%emt 0:01:03]} Nxg4 {[%emt 0:04:07]} 19. hxg4 {[%emt 0:03:26]} Bxa1 {[%emt 0:00:51]} 20. Qh4 {[%emt 0:01:48]} Bg7 {[%emt 0:01:12]} 21. f5 {[%emt 0:00:24]} Ne5 {[%emt 0:01:22]} 22. Bh6 {[%emt 0:10:34]} Bxh6 {[%emt 0:09:09]} 23. Qxh6 {[%emt 0:00:10]} Nxg4 {[%emt 0:00:05]} 24. Qh4 {[%emt 0:00:15]} Ne3 {[%emt 0:00:20]} 25. Rg1 {[%emt 0:01:51]} Nxg2 {[%emt 0:02:21]} 26. Rxg2 {[%emt 0:00:16]} Qxc1+ {[%emt 0:00:08]} 27. Rg1 {[%emt 0:00:06]} Qe3 {[%emt 0:00:37]} 28. Ng5 {[%emt 0:00:32]} h5 {[%emt 0:00:15]} 29. fxg6 {[%emt 0:01:30]} fxg6 {[%emt 0:00:06]} 30. e5 {[%emt 0:17:02]} Bc6+ {[%emt 0:01:03]} 31. Ne4 {[%emt 0:01:24]} Bxe4+ {[%emt 0:00:05]} 32. dxe4 {[%emt 0:00:10]} Qf3+ {[%emt 0:00:07]} 33. Rg2 {[%emt 0:00:43]} Rb2 {[%emt 0:00:03]} 34. Qh2 {[%emt 0:01:13]} Qxg2+ {[%emt 0:00:33]} 35. Qxg2 {[%emt 0:00:53]} Rxg2 {[%emt 0:00:02]} 0-1

[Event "Chile-ch Women 2019"]
[Site "Santiago Las Condes"]
[Date "2019.02.12"]
[Round "1.7"]
[White "Sanchez Tobar, Francisca Valentina"]
[Black "Kaempfe Fuentes, Catalina"]
[Result "1-0"]
[ECO "C47"]
[WhiteElo "1817"]
[BlackElo "1057"]
[Annotator "NA"]
[PlyCount "61"]
[EventDate "2019.02.12"]
[EventType "swiss"]
[EventCountry "CHI"]
[SourceTitle "playchess.com"]
[Source "ChessBase"]
[SourceQuality "1"]
[TimeControl "5400+30"]

1. e4 {[%emt 0:00:00]} e5 {[%emt 0:00:00]} 2. Nf3 {[%emt 0:00:00]} Nc6 {[%emt 0:00:08]} 3. Nc3 {[%emt 0:00:00]} Nf6 {[%emt 0:00:55]} 4. d4 {[%emt 0:00:05]} d5 {[%emt 0:01:34]} 5. dxe5 {[%emt 0:06:49]} dxe4 {[%emt 0:03:50]} 6. Qxd8+ {[%emt 0:00:42]} Nxd8 {[%emt 0:01:38]} 7. Ng5 {[%emt 0:07:37]} Nd7 {[%emt 0:06:11]} 8. Bf4 {[%emt 0:02:09]} f6 {[%emt 0:08:48]} 9. exf6 {[%emt 0:00:47]} gxf6 {[%emt 0:03:54]} 10. Ngxe4 {[%emt 0:00:07]} Ne6 {[%emt 0:02:28]} 11. Be3 {[%emt 0:01:25]} b6 {[%emt 0:02:20]} 12. Bb5 {[%emt 0:00:53]} Be7 {[%emt 0:04:14]} 13. Nd5 {[%emt 0:03:41]} Rf8 {[%emt 0:03:40]} 14. O-O-O {[%emt 0:03:00]} Rf7 {[%emt 0:02:10]} 15. Rhe1 {[%emt 0:02:09]} f5 {[%emt 0:04:36]} 16. Nxe7 {[%emt 0:00:19]} fxe4 {[%emt 0:02:04]} 17. Nxc8 {[%emt 0:02:01]} Rxc8 {[%emt 0:02:12]} 18. Bc6 {[%emt 0:00:42]} Nd8 {[%emt 0:03:42]} 19. Bxe4 {[%emt 0:00:34]} Nf6 {[%emt 0:05:52]} 20. Bf5 {[%emt 0:00:26]} Nd7 {[%emt 0:08:35]} 21. Bc5+ {[%emt 0:01:43]} Ne6 {[%emt 0:04:14]} 22. Bxe6 {[%emt 0:00:48]} Nxc5 {[%emt 0:01:47]} 23. Bxc8+ {[%emt 0:00:33]} Re7 {[%emt 0:01:25]} 24. Rxe7+ {[%emt 0:00:11]} Kxe7 {[%emt 0:00:09]} 25. f3 {[%emt 0:00:09]} Kf6 {[%emt 0:01:25]} 26. b4 {[%emt 0:00:17]} Na4 {[%emt 0:00:17]} 27. Rd7 {[%emt 0:01:53]} Nc3 {[%emt 0:01:19]} 28. Kb2 {[%emt 0:01:10]} Nb5 {[%emt 0:01:41]} 29. Rxh7 {[%emt 0:00:22]} Kg6 {[%emt 0:01:07]} 30. Bf5+ {[%emt 0:00:22]} Kxf5 {[%emt 0:00:51]} 31. Rh5+ {[%emt 0:00:08]} 1-0